Cogmind - Beta 12 @@@ ROGUE MODE // 2023.09.29 @ 22:38:27 Player: ILikeMonsters1890 Result: Destroyed by as-80404 with Assembled Blade Performance ------------- Evolutions (0) 0 Regions Visited (2) 400 Robots Destroyed (18) 90 Value Destroyed (301) 301 Prototype IDs (2) 40 Alien Tech Used (0) 0 Bonus (0) 0 TOTAL SCORE: 831 Bonus ------- None Cogmind --------- Core Integrity 0/250 Matter 255/300 Energy 250/250 System Corruption 4% Temperature Cool (0) Movement Core (350) Ox6 Location -10/Mines Parts ------- > --- POWER (1) -------- Ion Engine > --- PROPULSION (2) --- (None) > --- UTILITY (2) ------ Medium Storage Unit Seismic Detector > --- WEAPON (2) ------- Medium Laser Grenade Launcher > --- INVENTORY (10) --- Light Ion Engine Aluminum Leg Aluminum Leg Aluminum Leg Heat Sink Seismic Detector Light Armor Plating Small Laser Light Assault Rifle Light Assault Rifle Peak State ------------ > --- POWER ------------ Light Ion Engine > --- PROPULSION ------- Aluminum Leg Aluminum Leg > --- UTILITY ---------- Medium Storage Unit Seismic Detector > --- WEAPON ----------- Medium Laser Small Laser > --- INVENTORY -------- Light Ion Engine Aluminum Leg Aluminum Leg Wheel Wheel Seismic Detector Weapon Shielding Light Armor Plating Small Laser Light Assault Rifle [Rating: 8] Favorites ----------- Power Light Ion Engine Engine Light Ion Engine Propulsion Aluminum Leg Leg Aluminum Leg Utility Seismic Detector Device Seismic Detector Storage Medium Storage Unit Protection Light Armor Plating Weapon Small Laser Energy Gun Small Laser Launcher Grenade Launcher Build | -11 -10 -10 ------- Run | Jun Mat Min Slots Evolved . | . . . Power . | . . . Propulsion . | . . . Utility . | . . . Weapon . | . . . Parts Attached 16 | 2 13 1 Power 2 | . 2 . Engine 2 | . 2 . Core . | . . . Reactor . | . . . Propulsion 4 | . 4 . Treads . | . . . Leg 4 | . 4 . Wheel . | . . . Hover . | . . . Flight . | . . . Utility 5 | 1 4 . Device 3 | 1 2 . Storage 1 | . 1 . Processor . | . . . Hackware . | . . . Protection 1 | . 1 . Artifact . | . . . Weapon 5 | 1 3 1 Energy Gun 4 | 1 3 . Energy Cannon . | . . . Ballistic Gun . | . . . Ballistic Cannon . | . . . Launcher 1 | . . 1 Special Weapon . | . . . Impact Weapon . | . . . Slashing Weapon . | . . . Piercing Weapon . | . . . Special Melee Weapon . | . . . Unidentified Prototypes . | . . . Parts Lost 3 | . 1 2 Power . | . . . Propulsion 2 | . . 2 Utility . | . . . Weapon 1 | . 1 . Highest Loss Streak 2 | . 1 2 To Critical Strikes . | . . . Average Slot Usage (%) 99 | . 99 96 Engine 13 | . 13 14 Leg 27 | . 28 24 Device 13 | . 12 14 Storage 14 | . 14 14 Energy Gun 27 | . 27 26 Naked Turns . | . . . Heaviest Build 21 | 14 19 21 Greatest Support 20 | 20 20 20 Greatest Overweight (x) 6 | . . 6 Average Overweight (x) . | . . . Largest Inventory Capacity 10 | 8 10 10 Average Capacity 9 | 8 9 10 Most Carried 10 | 8 10 10 Average Carried 8 | 5 9 10 Final Capacity 10 | 8 10 10 Final Carried 10 | 7 10 10 Class Distribution -------------------- 50% | Scavenger-Mutant 49% | Mutant Dominant Class ---------------- Scavenger-Mutant | -10/Materials Scavenger-Mutant | -10/Mines Resources | -11 -10 -10 ----------- Run | Jun Mat Min Matter Collected 317 | 220 97 . Remotely . | . . . Salvage Created 628 | 169 430 29 Parts 41 | 14 27 . Haulers Intercepted 2 | . 2 . Recyclers Shooed 3 | 1 2 . Parts Field Recycled . | . . . Retrieved Matter . | . . . Parts Self-Destructed . | . . . Prevented . | . . . Kills | -11 -10 -10 ------- Run | Jun Mat Min Combat Hostiles Destroyed 17 | . 9 8 Guns 8 | . 8 . AOE 8 | . . 8 Classes Destroyed 8 | 2 4 2 Worker 1 | . . 1 Builder 1 | . 1 . Tunneler 4 | 4 . . Hauler 2 | . 2 . Recycler 1 | 1 . . Swarmer 3 | . 3 . Grunt 6 | . 6 . Assembled 8 | . . 8 Best Kill Streak 9 | 3 3 9 Combat Bots Only 8 | . 3 8 Max Kills in Single Turn 4 | 1 2 4 Gunslinging . | . . . Exploded 4 | . . 4 Melee . | . . . Uniques/NPCs Destroyed . | . . . Combat | -11 -10 -10 -------- Run | Jun Mat Min Damage Taken 840 | . 552 288 Core 254 | . 162 92 Absorbed by Shields . | . . . Core Remaining (%) 100 | 100 . . Volleys Fired 69 | 15 50 4 Largest 2 | 2 2 2 Hottest 90 | 90 90 90 Shots Fired 134 | 30 99 5 Gun 131 | 30 99 2 Cannon . | . . . Launcher 3 | . . 3 Special . | . . . Kinetic . | . . . Thermal 131 | 30 99 2 Explosive 3 | . . 3 Electromagnetic . | . . . Robot Hit Streak 12 | 9 11 12 Robot Miss Streak 8 | 4 8 1 Penetration Max . | . . . Secondary Targets . | . . . Shots Hit Robots 80 | 20 58 2 Core Hits 45 | 6 22 17 Critical Kills . | . . . Critical Parts Destroyed . | . . . Critical Strikes 1 | . 1 . Burn 1 | . 1 . Melee Attacks . | . . . Impact . | . . . Slashing . | . . . Piercing . | . . . Sneak Attacks . | . . . Combat Hostiles . | . . . Follow-up Attacks . | . . . Damage Inflicted 1519 | 244 719 556 Guns 961 | 244 705 12 Cannons . | . . . Explosions 537 | . . 537 Melee . | . . . Ramming 21 | . 14 7 Kinetic . | . . . Thermal 961 | 244 705 12 Explosive 537 | . . 537 Electromagnetic . | . . . Impact . | . . . Slashing . | . . . Piercing . | . . . Highest Corruption 4 | . . 4 Average Corruption 4 | . . 4 Corruption Purged . | . . . Corruption Blocked . | . . . Overload Shots . | . . . Overflow Damage 18 | . . 18 Projectiles . | . . . Explosions 18 | . . 18 Melee . | . . . Knockbacks . | . . . Impact . | . . . Kinetic . | . . . Secondary . | . . . Self-Inflicted Damage 55 | . . 55 Shots 2 | . . 2 Rammed . | . . . Targets Rammed 7 | . 6 1 Kicked 7 | . 6 1 Crushed . | . . . Highest Temperature 443 | 180 443 30 Average Temperature 116 | 62 132 17 Received Heat Transfer 266 | . 246 20 Effects 5 | . 5 . Shutdowns 1 | . 1 . Energy Bleed 2 | . 2 . Interference 1 | . 1 . Damage (minor) 1 | . 1 . Siege Activations . | . . . Robots Corrupted . | . . . Combat Hostiles . | . . . Parts Fried . | . . . Impact Corruptions . | . . . Robots Melted 1 | . 1 . Combat Hostiles 1 | . 1 . Parts Melted 7 | 2 5 . Heat Transferred 2652 | 657 1958 37 Parts Sabotaged . | . . . Parts Stolen . | . . . Parts Stripped . | . . . Power Chain Reactions . | . . . Missiles Intercepted . | . . . Alert | -11 -10 -10 ------- Run | Jun Mat Min Peak Influence 295 | 25 295 31 Initial 16 | . 16 14 Average 107 | 14 130 15 Maximum Alert Level 1 | . 1 . Low Security (%) 91 | 100 89 100 Level 1 8 | . 10 . Level 2 . | . . . Level 3 . | . . . Level 4 . | . . . Level 5 . | . . . High Security . | . . . Max Security . | . . . Squads Dispatched 2 | . 2 . Investigation 1 | . 1 . Extermination . | . . . Reinforcement 1 | . 1 . Assault . | . . . Garrison . | . . . Intercept . | . . . Searches Triggered . | . . . Construction Impeded . | . . . Haulers Reinforced . | . . . Active Scanning Responses . | . . . Cargo Convoy Interrupts . | . . . Stealth | -11 -10 -10 --------- Run | Jun Mat Min Distress Signals 3 | . 3 . Communications Jammed . | . . . Distress Signals . | . . . Times Spotted 33 | . 21 12 Peak Tracking Total 11 | . 4 11 Tactical Retreats 1 | . 1 . Traps | -11 -10 -10 ------- Run | Jun Mat Min Traps Triggered 1 | . 1 . Indirectly . | . . . Trap Hack Attempts . | . . . Triggered . | . . . Disarmed . | . . . Reprogrammed . | . . . Reused . | . . . Traps Extracted . | . . . Installed . | . . . Triggered . | . . . Machines | -11 -10 -10 ---------- Run | Jun Mat Min Machines Disabled 1 | . . 1 Max in Single Turn 1 | . . 1 Machines Repaired . | . . . Machines Sabotaged . | . . . Overloaded Fab Kills . | . . . Hacking | -11 -10 -10 --------- Run | Jun Mat Min Machines Accessed 5 | . 5 . Terminals 4 | . 4 . Fabricators . | . . . Repair Stations . | . . . Recycling Units 1 | . 1 . Scanalyzers . | . . . Garrison Access . | . . . Total Hacks 13 | . 13 . Successful 5 | . 5 . Failed 8 | . 8 . Catastrophic 1 | . 1 . Database Lockouts . | . . . Manual . | . . . Terminals 11 | . 11 . Fabricators . | . . . Repair Stations . | . . . Recycling Units 2 | . 2 . Scanalyzers . | . . . Garrison Access . | . . . Terminal Hacks 4 | . 4 . Prototype ID Bank 1 | . 1 . Branch Access Points 1 | . 1 . Locate Traps 2 | . 2 . Fabricator Hacks . | . . . Repair Station Hacks . | . . . Recycling Unit Hacks 1 | . 1 . Retrieve Components 1 | . 1 . Scanalyzer . | . . . Garrison Access Hacks . | . . . Unauthorized Hacks . | . . . Terminals . | . . . Fabricators . | . . . Repair Stations . | . . . Recycling Units . | . . . Scanalyzers . | . . . Garrison Access . | . . . Data Cores Recovered . | . . . Used . | . . . Hacking Detections 5 | . 5 . Full Trace Events 1 | . 1 . Feedback Events . | . . . Feedback Blocked . | . . . Robot Schematics Acquired . | . . . Robots Built . | . . . Authchips . | . . . Time . | . . . Total Robot Build Rating . | . . . Part Schematics Acquired . | . . . Parts Built . | . . . Authchips . | . . . Time . | . . . Total Part Build Rating . | . . . Parts Repaired . | . . . Time . | . . . Parts Recycled . | . . . Recycled Matter . | . . . Retrieved Matter . | . . . Retrieved Components 10 | . 10 . Parts Scanalyzed . | . . . Part Schematics Acquired . | . . . Parts Damaged . | . . . Bothacking | -11 -10 -10 ------------ Run | Jun Mat Min Used RIF Installer . | . . . Robots Hacked . | . . . Non-combat . | . . . Combat . | . . . Robot Hacks Applied . | . . . Relay Couplers Released . | . . . Fabnet Peak Effective % . | . . . Robots Rewired . | . . . Allies Hacked . | . . . Hacks Repelled . | . . . Allies | -11 -10 -10 -------- Run | Jun Mat Min Total Allies . | . . . Largest Group . | . . . Highest-Rated Group . | . . . Highest-Rated Ally . | . . . Total Orders . | . . . Ally Attacks . | . . . Total Damage . | . . . Kills . | . . . Allies Corrupted . | . . . Allies Melted . | . . . Intel | -11 -10 -10 ------- Run | Jun Mat Min Robot Analysis Total . | . . . Derelict Logs Recovered . | . . . Drone Launches . | . . . Drone Recoveries . | . . . Exploration | -11 -10 -10 ------------- Run | Jun Mat Min Turns Passed 1029 | 128 826 75 Spaces Moved 614 | 61 515 38 Core 1 | . . 1 Treads . | . . . Legs 613 | 61 515 37 Wheels . | . . . Hover . | . . . Flight . | . . . Fastest Speed 120 | 120 120 120 Average Speed 120 | 120 120 126 Slowest Speed 350 | 120 120 350 Overloaded Moves . | . . . Propulsion Burnouts . | . . . Robots Hopped . | . . . Cave-ins Triggered . | . . . Exploration Rate (%) 27 | 3 67 11 Regions Visited 2 Branch Regions 1 Pre-discovered Areas . | . . . Known Exits Taken 1 | . 1 . Unknown Exits Taken 1 | 1 . . Scrap Searched . | . . . Spaces Dug . | . . . Terrain Destroyed 16 | . . 16 Melee . | . . . Projectile . | . . . AOE 16 | . . 16 Terrain Rammed . | . . . Walls Destroyed . | . . . Machines Disabled . | . . . Actions | -11 -10 -10 --------- Run | Jun Mat Min Total 777 | 86 630 61 Wait 35 | 2 16 17 Move 612 | 60 514 38 Hop . | . . . Pick Up 18 | 4 14 . Fast Attach 4 | 1 3 . Attach 1 | . 1 . Detach . | . . . Swap 11 | 1 9 1 Drop 20 | 3 17 . Fire 69 | 15 50 4 Melee . | . . . Ram . | . . . Kick 7 | . 6 1 Crush . | . . . Escape Stasis . | . . . Rewire . | . . . Trap . | . . . Miscellaneous . | . . . Route ------- -11/Junkyard -10/Materials (discovered 4 exits: [*Mat x2] / *Min x2) -10/Mines History --------- Turn | Location | Event 22 | -11/Junkyard | Discovered new exit (range 3) 129 | -11/Junkyard | Entered Materials 224 | -10/Materials | Discovered new exit (range 16) 335 | -10/Materials | Build established: Mutant 459 | -10/Materials | Core integrity fell below 50% 573 | -10/Materials | Discovered new exit (range 15) 581 | -10/Materials | Identified exit to Mines 642 | -10/Materials | Discovered new exit (range 15) 822 | -10/Materials | Build established: Scavenger-Mutant 955 | -10/Materials | Entered Mines 990 | -10/Mines | Assembled infested the area 995 | -10/Mines | Assisted by a Guerilla fighting off Assembled 1026 | -10/Mines | Core integrity fell below 20% 1030 | -10/Mines | Destroyed by as-80404 with Assembled Blade Last Messages --------------- 01020_ as-72968 sneak attacks. 01023_ as-72968 destroyed. 01023_ Aluminum Leg destroyed. 01023_ Destroyed Aluminum Leg. 01023_ K-01 Serf destroyed. 01023_ Core Extractor disabled. 01023_ Knocked back. 01023_ K-01 Serf destroyed. 01025_ as-86508 destroyed. 01025_ Destroyed Asb. Hover Unit. 01025_ as-20412 destroyed. 01025_ Destroyed Asb. Hover Unit. 01025_ as-54348 destroyed. 01025_ as-85638 destroyed. 01027_ as-51005 destroyed. 01027_ as-64548 destroyed. 01027_ as-19924 destroyed. 01027_ Aluminum Leg destroyed. 01027_ System corrupted by crushing effect (+4). 01030_ The unstable cave ceiling collapses. Map ----- +----------------------------------------------------+ | ???????????????????????????????????????????????? | | ???????????????????????????????????????????????? | | ???????????????????????????????????????????????? | | ???????????????????????????????????????????????? | | ???????????????????????????????????????????????? | | ???????????????????????????????????????????????? | | ???????????????????????????????????????????????? | | ???????????????????????????????????????????????? | | ???????????????????????????????????????????????? | | ???????????????????????????????????????????????? | | ???????????????????????????????????????????????? | | ????????????????????###????????????????????????? | | ????????????????????# $????????????????????????? | | ????????????????????# #????????????????????????? | | ?????????????? ????# ##???????############????? | | ?????????????#? #### # ##?????# #????? | | ????????????? %? # ####### #????? | | ????????????#! # # ## #????? | | ???????????# %%% % """ ## """ """ #????? | | ??????????##%%!! % %% # """ """ """ #????? | | ??????????# ] % """*## """ """ #????? | | ???????# % # a =%!## #????? | | ?????????????????# " ## """ """ #????? | | ?????????????????## a " ## """ """ #????? | | ??????????????????#??# a "" ## """ """ #????? | | ?????????????????????# a@ ## #????? | | ?????????????????????# ##### #????? | | ?????????????????????#### #???############????? | | ????????????????????????####???????????????????? | | ???????????????????????????????????????????????? | | ???????????????????????????????????????????????? | | ???????????????????????????????????????????????? | | | | | | | | | | | | | | | | | | | | | | | | | | | | | | | | | | | | | +----------------------------------------------------+ Best States ------------- Heat Dissipation 25 Energy Generation 10 Energy Capacity 250 Matter Stores 300 Matter Capacity 300 Sight Range 16 Terrain Scan Density 10 Armor Coverage 150 Evasion (%) 55 Item Schematics ----------------- None Robot Schematics ------------------ None Fabricated ------------ Nothing Alien Tech Used ----------------- None Achievements -------------- None Challenges ------------ None Game ------ Seed CargoBeamBeam Manual? 0 Play Time 00:10:56 Cumulative 223.1 hours Start 2023.09.29 @ 22:29:02 End 2023.09.29 @ 22:38:27 Sessions 1 Manual Loads 0 Difficulty Rogue Special Mode None Game No. 186 Rogue 186 Adventurer 0 Explorer 0 Win Type - Total 11 Types 8/0/2/1/0/0/0/0/0 Lore% 81 Gallery% 71 Achievement% 59 Wizard Run 0 Options --------- ASCII 0 Keyboard 0 Movement Numpad Keybinds 0 Fullscreen 2 Font 18/Smallcaps Map View 76x50 Tactical HUD 1 Map Filters NONE Filters NONE Steam 1 RUN: d18c7cde-b2c1-4978-b963-bf43e2369829